[Event "Late-Titled-Tuesday-Blitz-December-26-2023"]
[Site "Chess.com"]
[Date "2023.12.26"]
[Round "7"]
[White "sofaceindisguise"]
[Black "DanylaBagrov"]
[Result "1-0"]
[WhiteElo "2733"]
[BlackElo "2573"]
[TimeControl "180+1"]
[EndTime "15:18:50 PST"]
[Termination "sofaceindisguise won by resignation"]

1. Nf3 {[%clk 0:02:18.3]} 1... d6 {[%clk 0:02:58.5]} 2. d4 {[%clk 0:02:18.7]}
2... Nf6 {[%clk 0:02:58.5]} 3. c4 {[%clk 0:02:18.5]} 3... g6 {[%clk 0:02:59]} 4.
g3 {[%clk 0:02:19]} 4... Bg7 {[%clk 0:02:59.6]} 5. Bg2 {[%clk 0:02:19.9]} 5...
O-O {[%clk 0:03:00.2]} 6. O-O {[%clk 0:02:20.5]} 6... Nbd7 {[%clk 0:03:00.4]} 7.
Nc3 {[%clk 0:02:16.9]} 7... e5 {[%clk 0:02:59.3]} 8. e4 {[%clk 0:02:17]} 8...
exd4 {[%clk 0:02:55.1]} 9. Nxd4 {[%clk 0:02:17.9]} 9... a5 {[%clk 0:02:54.3]}
10. Re1 {[%clk 0:02:11.2]} 10... Nc5 {[%clk 0:02:54.5]} 11. f3 {[%clk
0:02:11.3]} 11... Nfd7 {[%clk 0:02:52.4]} 12. Be3 {[%clk 0:02:11.6]} 12... a4
{[%clk 0:02:48.8]} 13. Qc2 {[%clk 0:02:05.4]} 13... Ne5 {[%clk 0:02:41.8]} 14.
b3 {[%clk 0:02:03.1]} 14... Ned3 {[%clk 0:02:38.8]} 15. Reb1 {[%clk 0:01:58.2]}
15... axb3 {[%clk 0:02:31]} 16. axb3 {[%clk 0:01:59.1]} 16... Nb4 {[%clk
0:02:29.3]} 17. Qd1 {[%clk 0:01:54.2]} 17... Rxa1 {[%clk 0:02:28.3]} 18. Rxa1
{[%clk 0:01:55.1]} 18... f5 {[%clk 0:02:22.7]} 19. Ra8 {[%clk 0:01:52.8]} 19...
fxe4 {[%clk 0:02:18.3]} 20. Nxe4 {[%clk 0:01:39.3]} 20... Nxe4 {[%clk
0:02:05.9]} 21. fxe4 {[%clk 0:01:40.2]} 21... Qf6 {[%clk 0:01:44.2]} 22. Qd2
{[%clk 0:01:33.6]} 22... Nc6 {[%clk 0:01:27.3]} 23. Nb5 {[%clk 0:01:31.7]} 23...
Qe7 {[%clk 0:01:13.9]} 24. Bg5 {[%clk 0:01:26.9]} 24... Qf7 {[%clk 0:01:00.6]}
25. h3 {[%clk 0:01:06.3]} 25... Ne5 {[%clk 0:00:57.7]} 26. Bf4 {[%clk
0:01:02.3]} 26... Bxh3 {[%clk 0:00:45.7]} 27. Rxf8+ {[%clk 0:00:59.8]} 27...
Bxf8 {[%clk 0:00:46.2]} 28. Bxe5 {[%clk 0:00:58.7]} 28... Bxg2 {[%clk
0:00:46.8]} 29. Kxg2 {[%clk 0:00:56.7]} 29... dxe5 {[%clk 0:00:46.7]} 30. Qd8
{[%clk 0:00:56]} 30... c6 {[%clk 0:00:33.3]} 31. Nd6 {[%clk 0:00:55.5]} 31...
Qe6 {[%clk 0:00:33]} 32. Nxb7 {[%clk 0:00:51.2]} 32... Qg4 {[%clk 0:00:33]} 33.
Qd3 {[%clk 0:00:51.3]} 33... h5 {[%clk 0:00:26.7]} 34. Nd8 {[%clk 0:00:39.2]}
34... c5 {[%clk 0:00:20.4]} 35. Nc6 {[%clk 0:00:37.8]} 35... Bg7 {[%clk
0:00:14.4]} 36. Ne7+ {[%clk 0:00:36.8]} 36... Kh7 {[%clk 0:00:12.5]} 37. Qf3
{[%clk 0:00:34]} 37... Qg5 {[%clk 0:00:11.9]} 38. Nd5 {[%clk 0:00:32.9]} 38...
Qd2+ {[%clk 0:00:12.4]} 39. Qf2 {[%clk 0:00:33.3]} 39... Qd3 {[%clk 0:00:13]}
40. Qe3 {[%clk 0:00:33.5]} 40... Qc2+ {[%clk 0:00:12.6]} 41. Kh3 {[%clk
0:00:30.8]} 41... Qb1 {[%clk 0:00:12.2]} 42. Qf3 {[%clk 0:00:27.3]} 42... Kh6
{[%clk 0:00:06.1]} 43. g4 {[%clk 0:00:24.2]} 43... hxg4+ {[%clk 0:00:05.2]} 44.
Kxg4 {[%clk 0:00:24.6]} 44... Qg1+ {[%clk 0:00:04.3]} 45. Kh3 {[%clk 0:00:24.8]}
45... Kh7 {[%clk 0:00:04]} 46. Qg2 {[%clk 0:00:21]} 46... Qd1 {[%clk 0:00:03.9]}
47. Kg3 {[%clk 0:00:20.7]} 47... Qxb3+ {[%clk 0:00:04.4]} 48. Kg4 {[%clk
0:00:19.6]} 48... Qxc4 {[%clk 0:00:05]} 49. Qf3 {[%clk 0:00:19.8]} 49... Qc1
{[%clk 0:00:04.5]} 50. Qh3+ {[%clk 0:00:20.1]} 50... Qh6 {[%clk 0:00:05]} 51.
Qf3 {[%clk 0:00:19.7]} 51... Qh5+ {[%clk 0:00:05.5]} 52. Kg3 {[%clk 0:00:20.3]}
52... Qxf3+ {[%clk 0:00:06.4]} 53. Kxf3 {[%clk 0:00:21.2]} 53... c4 {[%clk
0:00:04.3]} 54. Ke3 {[%clk 0:00:19.7]} 54... Bh6+ {[%clk 0:00:04.9]} 55. Ke2
{[%clk 0:00:20.1]} 55... Bf4 {[%clk 0:00:05.1]} 56. Kd1 {[%clk 0:00:19.1]} 56...
g5 {[%clk 0:00:04.2]} 57. Kc2 {[%clk 0:00:18.7]} 57... g4 {[%clk 0:00:03.7]} 58.
Nf6+ {[%clk 0:00:19.2]} 58... Kg6 {[%clk 0:00:03.5]} 59. Nxg4 {[%clk 0:00:20.1]}
59... Kg5 {[%clk 0:00:04.4]} 60. Nf2 {[%clk 0:00:20.3]} 60... Bg3 {[%clk
0:00:03.6]} 61. Nd1 {[%clk 0:00:19.6]} 61... Be1 {[%clk 0:00:03.7]} 62. Ne3
{[%clk 0:00:19.6]} 62... c3 {[%clk 0:00:03.7]} 63. Kd3 {[%clk 0:00:19.2]} 63...
Bd2 {[%clk 0:00:03.6]} 64. Nc4 {[%clk 0:00:19]} 64... Kf4 {[%clk 0:00:04.3]} 65.
Na3 {[%clk 0:00:18.5]} 65... Kf3 {[%clk 0:00:04.1]} 66. Nc2 {[%clk 0:00:19.4]}
66... Kf2 {[%clk 0:00:03.4]} 67. Na3 {[%clk 0:00:19.7]} 67... Ke1 {[%clk
0:00:03.4]} 68. Kc2 {[%clk 0:00:19.1]} 68... Ke2 {[%clk 0:00:03.6]} 69. Nc4
{[%clk 0:00:19.5]} 69... Bf4 {[%clk 0:00:01.9]} 70. Kxc3 {[%clk 0:00:18.9]}
70... Kf3 {[%clk 0:00:02.8]} 71. Kd3 {[%clk 0:00:19.3]} 71... Bg3 {[%clk
0:00:03.4]} 72. Nd6 {[%clk 0:00:19.6]} 72... Bf4 {[%clk 0:00:03.6]} 73. Kc4
{[%clk 0:00:20]} 73... Bh2 {[%clk 0:00:04]} 74. Kd5 {[%clk 0:00:20.9]} 74... Bf4
{[%clk 0:00:04.1]} 75. Nf7 {[%clk 0:00:21.4]} 75... Kg4 {[%clk 0:00:02.9]} 76.
Ke6 {[%clk 0:00:21.1]} 76... Kf3 {[%clk 0:00:02.5]} 77. Kf5 {[%clk 0:00:21.6]}
77... Ke3 {[%clk 0:00:02]} 78. Nxe5 {[%clk 0:00:22]} 78... Kd4 {[%clk
0:00:02.3]} 79. Kxf4 {[%clk 0:00:21.9]} 1-0

[Event "Late-Titled-Tuesday-Blitz-December-26-2023"]
[Site "Chess.com"]
[Date "2023.12.26"]
[Round "7"]
[White "Slovak_fighter2000"]
[Black "KNVB"]
[Result "0-1"]
[WhiteElo "2485"]
[BlackElo "2697"]
[TimeControl "180+1"]
[EndTime "15:18:52 PST"]
[Termination "KNVB won on time"]

1. c3 {[%clk 0:02:59.6]} 1... b6 {[%clk 0:02:57.6]} 2. Qc2 {[%clk 0:02:59.9]}
2... Bb7 {[%clk 0:02:58]} 3. e4 {[%clk 0:02:56.3]} 3... e6 {[%clk 0:02:58.2]} 4.
d4 {[%clk 0:02:53.4]} 4... c5 {[%clk 0:02:57.8]} 5. Bd3 {[%clk 0:02:45]} 5...
cxd4 {[%clk 0:02:56.1]} 6. cxd4 {[%clk 0:02:44.7]} 6... Nc6 {[%clk 0:02:57]} 7.
Nf3 {[%clk 0:02:37.1]} 7... Nb4 {[%clk 0:02:54.3]} 8. Qe2 {[%clk 0:02:35.3]}
8... Nxd3+ {[%clk 0:02:39.5]} 9. Qxd3 {[%clk 0:02:36.2]} 9... Nf6 {[%clk
0:02:40.4]} 10. Nc3 {[%clk 0:02:35.2]} 10... Bb4 {[%clk 0:01:09.2]} 11. e5
{[%clk 0:02:19.4]} 11... Ne4 {[%clk 0:01:08.9]} 12. O-O {[%clk 0:02:08.3]} 12...
Nxc3 {[%clk 0:01:08]} 13. bxc3 {[%clk 0:02:09.2]} 13... Be7 {[%clk 0:01:08.9]}
14. Bf4 {[%clk 0:01:46.2]} 14... Rc8 {[%clk 0:01:02.4]} 15. Nd2 {[%clk
0:01:25.1]} 15... O-O {[%clk 0:00:48.4]} 16. c4 {[%clk 0:01:18.8]} 16... d5
{[%clk 0:00:29.2]} 17. exd6 {[%clk 0:01:14.3]} 17... Bxd6 {[%clk 0:00:29.5]} 18.
Bxd6 {[%clk 0:01:11.4]} 18... Qxd6 {[%clk 0:00:30.4]} 19. Nb3 {[%clk 0:01:00.9]}
19... Qc6 {[%clk 0:00:25]} 20. d5 {[%clk 0:00:43.8]} 20... Qxc4 {[%clk
0:00:06.7]} 21. Qxc4 {[%clk 0:00:40.3]} 21... Rxc4 {[%clk 0:00:07.6]} 22. dxe6
{[%clk 0:00:41]} 22... fxe6 {[%clk 0:00:08.5]} 23. Rad1 {[%clk 0:00:36.7]} 23...
Bd5 {[%clk 0:00:07.5]} 24. Rd2 {[%clk 0:00:32.9]} 24... Ra4 {[%clk 0:00:04.2]}
25. h3 {[%clk 0:00:29.7]} 25... Rc8 {[%clk 0:00:03.9]} 26. Rb1 {[%clk
0:00:26.7]} 26... Kf7 {[%clk 0:00:02.5]} 27. Rbb2 {[%clk 0:00:24.4]} 27... g5
{[%clk 0:00:01.7]} 28. Nd4 {[%clk 0:00:24.2]} 28... Kf6 {[%clk 0:00:02.1]} 29.
Ne2 {[%clk 0:00:19.6]} 29... h5 {[%clk 0:00:02.1]} 30. Kh2 {[%clk 0:00:19.1]}
30... h4 {[%clk 0:00:02.4]} 31. Nd4 {[%clk 0:00:17.7]} 31... Rc5 {[%clk
0:00:02.7]} 32. Ne2 {[%clk 0:00:17.8]} 32... Ra3 {[%clk 0:00:02.3]} 33. f3
{[%clk 0:00:12]} 33... Rca5 {[%clk 0:00:02.1]} 34. Nc1 {[%clk 0:00:12.2]} 34...
Rc3 {[%clk 0:00:02.2]} 35. Nd3 {[%clk 0:00:11.4]} 35... Ra6 {[%clk 0:00:01.3]}
36. Nb4 {[%clk 0:00:11.7]} 36... Ra5 {[%clk 0:00:01.8]} 37. Nd3 {[%clk
0:00:11.2]} 37... Rca3 {[%clk 0:00:02]} 38. Nb4 {[%clk 0:00:11.4]} 38... R3a4
{[%clk 0:00:02.2]} 39. Kg1 {[%clk 0:00:09.4]} 39... Rb5 {[%clk 0:00:02.5]} 40.
Nxd5+ {[%clk 0:00:08.7]} 40... Rxd5 {[%clk 0:00:03.4]} 41. Re2 {[%clk
0:00:09.2]} 41... Rda5 {[%clk 0:00:03.2]} 42. Kf2 {[%clk 0:00:09.5]} 42... Rd4
{[%clk 0:00:03.1]} 43. Kg1 {[%clk 0:00:09.9]} 43... Rc5 {[%clk 0:00:03.6]} 44.
Kh2 {[%clk 0:00:10.4]} 44... e5 {[%clk 0:00:04.2]} 45. Kg1 {[%clk 0:00:10.7]}
45... Ke6 {[%clk 0:00:04.8]} 46. Kf2 {[%clk 0:00:11.2]} 46... Kd5 {[%clk
0:00:05.4]} 47. Kg1 {[%clk 0:00:09.8]} 47... b5 {[%clk 0:00:06]} 48. Kf2 {[%clk
0:00:10.1]} 48... a5 {[%clk 0:00:06.4]} 49. Re3 {[%clk 0:00:09.8]} 49... Kd6
{[%clk 0:00:04.7]} 50. Ree2 {[%clk 0:00:09.8]} 50... Rcd5 {[%clk 0:00:04.5]} 51.
Ke3 {[%clk 0:00:10]} 51... b4 {[%clk 0:00:04.4]} 52. Rec2 {[%clk 0:00:09.1]}
52... Rc5 {[%clk 0:00:04.5]} 53. Re2 {[%clk 0:00:08.9]} 53... Rc3+ {[%clk
0:00:05]} 54. Kf2 {[%clk 0:00:09.2]} 54... Kd5 {[%clk 0:00:05.5]} 55. Kf1 {[%clk
0:00:08.5]} 55... Ra3 {[%clk 0:00:03.9]} 56. Kf2 {[%clk 0:00:08.5]} 56... e4
{[%clk 0:00:04]} 57. fxe4+ {[%clk 0:00:08.7]} 57... Rxe4 {[%clk 0:00:04.9]} 58.
Red2+ {[%clk 0:00:09]} 58... Rd4 {[%clk 0:00:05.4]} 59. Re2 {[%clk 0:00:09.4]}
59... Rf4+ {[%clk 0:00:03.6]} 60. Kg1 {[%clk 0:00:09.5]} 60... Re4 {[%clk
0:00:03.7]} 61. Red2+ {[%clk 0:00:09.8]} 61... Rd4 {[%clk 0:00:04.3]} 62. Rf2
{[%clk 0:00:09.9]} 62... Kc4 {[%clk 0:00:02.4]} 63. Rfc2+ {[%clk 0:00:09.4]}
63... Rc3 {[%clk 0:00:02.7]} 64. Rf2 {[%clk 0:00:09.6]} 64... Kb5 {[%clk
0:00:02.9]} 65. Rf5+ {[%clk 0:00:09.4]} 65... Rc5 {[%clk 0:00:03.5]} 66. Rf8
{[%clk 0:00:08.3]} 66... Rd1+ {[%clk 0:00:03.4]} 67. Kf2 {[%clk 0:00:08.2]}
67... Rdc1 {[%clk 0:00:03.7]} 68. Kf3 {[%clk 0:00:06.8]} 68... R1c2 {[%clk
0:00:03.2]} 69. Rb8+ {[%clk 0:00:04.5]} 69... Ka4 {[%clk 0:00:03.5]} 70. Rb1
{[%clk 0:00:01.7]} 70... Rc1 {[%clk 0:00:04.1]} 71. Rxc1 {[%clk 0:00:01.1]}
71... Rxc1 {[%clk 0:00:04.8]} 0-1

[Event "Late-Titled-Tuesday-Blitz-December-26-2023"]
[Site "Chess.com"]
[Date "2023.12.26"]
[Round "7"]
[White "BardArtem"]
[Black "Kaua18"]
[Result "0-1"]
[WhiteElo "2665"]
[BlackElo "2552"]
[TimeControl "180+1"]
[EndTime "15:19:40 PST"]
[Termination "Kaua18 won on time"]

1. e4 {[%clk 0:02:56.1]} 1... c5 {[%clk 0:02:57.7]} 2. c3 {[%clk 0:02:53]} 2...
Nf6 {[%clk 0:02:57.5]} 3. e5 {[%clk 0:02:52.6]} 3... Nd5 {[%clk 0:02:57.7]} 4.
Nf3 {[%clk 0:02:52.5]} 4... e6 {[%clk 0:02:55.6]} 5. Bc4 {[%clk 0:02:52]} 5...
d6 {[%clk 0:02:47.4]} 6. d4 {[%clk 0:02:51.2]} 6... cxd4 {[%clk 0:02:46.9]} 7.
cxd4 {[%clk 0:02:52.1]} 7... Be7 {[%clk 0:02:45.8]} 8. O-O {[%clk 0:02:51.5]}
8... O-O {[%clk 0:02:45.5]} 9. Bd2 {[%clk 0:02:50.5]} 9... Nc6 {[%clk
0:02:31.6]} 10. Nc3 {[%clk 0:02:48.2]} 10... Nxc3 {[%clk 0:02:31.3]} 11. Bxc3
{[%clk 0:02:49.1]} 11... dxe5 {[%clk 0:02:27.2]} 12. dxe5 {[%clk 0:02:50]} 12...
Qc7 {[%clk 0:02:26.4]} 13. Qe2 {[%clk 0:02:49]} 13... Rd8 {[%clk 0:02:24.6]} 14.
Rfd1 {[%clk 0:02:47.4]} 14... Rxd1+ {[%clk 0:02:23.8]} 15. Rxd1 {[%clk
0:02:48.3]} 15... b6 {[%clk 0:02:15.8]} 16. Bd3 {[%clk 0:02:42.1]} 16... Bb7
{[%clk 0:02:14.6]} 17. a3 {[%clk 0:02:39.9]} 17... Rd8 {[%clk 0:02:08.4]} 18. h4
{[%clk 0:02:39.4]} 18... Nb8 {[%clk 0:01:52.4]} 19. h5 {[%clk 0:02:31.9]} 19...
h6 {[%clk 0:01:43.9]} 20. Bb1 {[%clk 0:02:25.9]} 20... Nd7 {[%clk 0:01:36.4]}
21. Rc1 {[%clk 0:02:02.6]} 21... Qb8 {[%clk 0:01:25.4]} 22. Bd2 {[%clk
0:01:55.6]} 22... Nc5 {[%clk 0:01:20.5]} 23. Bc3 {[%clk 0:01:39.1]} 23... Ba6
{[%clk 0:01:09.7]} 24. Qe3 {[%clk 0:01:38]} 24... Bd3 {[%clk 0:00:21.3]} 25. Nd4
{[%clk 0:01:31]} 25... Bxb1 {[%clk 0:00:10.1]} 26. Nc6 {[%clk 0:01:27.8]} 26...
Qc7 {[%clk 0:00:10]} 27. Nxd8 {[%clk 0:01:17.2]} 27... Ba2 {[%clk 0:00:04.7]}
28. b4 {[%clk 0:01:11.6]} 28... Na4 {[%clk 0:00:03]} 29. Nxf7 {[%clk 0:00:44.3]}
29... Kxf7 {[%clk 0:00:03.9]} 30. Qf3+ {[%clk 0:00:43.9]} 30... Kg8 {[%clk
0:00:03.8]} 31. Bd2 {[%clk 0:00:36.1]} 31... Qd7 {[%clk 0:00:03.9]} 32. Be3
{[%clk 0:00:29.1]} 32... Bd5 {[%clk 0:00:04.1]} 33. Qg4 {[%clk 0:00:29.4]} 33...
Kh8 {[%clk 0:00:04.2]} 34. b5 {[%clk 0:00:28.8]} 34... Nc5 {[%clk 0:00:04]} 35.
a4 {[%clk 0:00:25.8]} 35... Qe8 {[%clk 0:00:02.6]} 36. a5 {[%clk 0:00:14.9]}
36... Qxb5 {[%clk 0:00:02.2]} 37. axb6 {[%clk 0:00:15.5]} 37... axb6 {[%clk
0:00:02.7]} 38. Ra1 {[%clk 0:00:16.2]} 38... Qe8 {[%clk 0:00:02.3]} 39. Qg6
{[%clk 0:00:16.6]} 39... Qxg6 {[%clk 0:00:02.1]} 40. hxg6 {[%clk 0:00:17.5]}
40... Be4 {[%clk 0:00:02.2]} 41. Ra7 {[%clk 0:00:17.3]} 41... Bf8 {[%clk
0:00:01]} 42. Rc7 {[%clk 0:00:16.5]} 42... Kg8 {[%clk 0:00:01.5]} 43. Rc8 {[%clk
0:00:15.8]} 43... Bxg6 {[%clk 0:00:01.7]} 44. Rb8 {[%clk 0:00:14.1]} 44... Bf7
{[%clk 0:00:02.4]} 45. Rxb6 {[%clk 0:00:14.2]} 45... Nd7 {[%clk 0:00:03.1]} 46.
Rb5 {[%clk 0:00:13.5]} 46... Be7 {[%clk 0:00:03.5]} 47. Rb7 {[%clk 0:00:13]}
47... Be8 {[%clk 0:00:04.1]} 48. f4 {[%clk 0:00:13.4]} 48... Kf7 {[%clk
0:00:04.5]} 49. Kh2 {[%clk 0:00:13.2]} 49... g6 {[%clk 0:00:05]} 50. g4 {[%clk
0:00:12.8]} 50... Kf8 {[%clk 0:00:05.7]} 51. Kg3 {[%clk 0:00:13.1]} 51... Nc5
{[%clk 0:00:05.3]} 52. Rb4 {[%clk 0:00:11.1]} 52... Nd7 {[%clk 0:00:05.3]} 53.
Rb1 {[%clk 0:00:11.2]} 53... Bc5 {[%clk 0:00:05.4]} 54. Bd2 {[%clk 0:00:11]}
54... Be7 {[%clk 0:00:05.1]} 55. Rg1 {[%clk 0:00:10.5]} 55... g5 {[%clk
0:00:05.4]} 56. Rf1 {[%clk 0:00:09.3]} 56... gxf4+ {[%clk 0:00:05.3]} 57. Bxf4
{[%clk 0:00:10.2]} 57... Kg7 {[%clk 0:00:05.7]} 58. Kg2 {[%clk 0:00:06.9]} 58...
Nc5 {[%clk 0:00:06.2]} 59. Bg3 {[%clk 0:00:07.6]} 59... Bc6+ {[%clk 0:00:06.7]}
60. Kh3 {[%clk 0:00:07.6]} 60... Bg5 {[%clk 0:00:06.6]} 61. Rb1 {[%clk
0:00:06.9]} 61... Be4 {[%clk 0:00:06]} 62. Rb5 {[%clk 0:00:05.8]} 62... Nd3
{[%clk 0:00:04.1]} 63. Rb6 {[%clk 0:00:06]} 63... Kf7 {[%clk 0:00:04.1]} 64. Ra6
{[%clk 0:00:05.9]} 64... Bd5 {[%clk 0:00:03.5]} 65. Ra7+ {[%clk 0:00:06.4]}
65... Kg6 {[%clk 0:00:03.6]} 66. Rc7 {[%clk 0:00:05.7]} 66... Nb4 {[%clk
0:00:03.6]} 67. Rc8 {[%clk 0:00:05.8]} 67... Nd3 {[%clk 0:00:03.8]} 68. Rg8+
{[%clk 0:00:06.1]} 68... Kf7 {[%clk 0:00:04.2]} 69. Rb8 {[%clk 0:00:06.9]} 69...
Nc5 {[%clk 0:00:03.8]} 70. Rh8 {[%clk 0:00:07]} 70... Ne4 {[%clk 0:00:04.1]} 71.
Be1 {[%clk 0:00:06.7]} 71... Kg6 {[%clk 0:00:04.2]} 72. Rg8+ {[%clk 0:00:07]}
72... Kf7 {[%clk 0:00:04.6]} 73. Rb8 {[%clk 0:00:07.9]} 73... Bf4 {[%clk
0:00:04.9]} 74. Rh8 {[%clk 0:00:05.7]} 74... Kg7 {[%clk 0:00:04.8]} 75. Re8
{[%clk 0:00:05.8]} 75... Bxe5 {[%clk 0:00:04.9]} 76. Bh4 {[%clk 0:00:06.5]}
76... Ng5+ {[%clk 0:00:05.1]} 77. Bxg5 {[%clk 0:00:05.8]} 77... hxg5 {[%clk
0:00:06]} 78. Rg8+ {[%clk 0:00:04.6]} 78... Kf7 {[%clk 0:00:06.2]} 79. Rf8+
{[%clk 0:00:04.8]} 79... Ke7 {[%clk 0:00:05.4]} 80. Re8+ {[%clk 0:00:05]} 80...
Kd7 {[%clk 0:00:06]} 81. Rd8+ {[%clk 0:00:04]} 81... Kc6 {[%clk 0:00:05.5]} 82.
Rc8+ {[%clk 0:00:02.2]} 82... Bc7 {[%clk 0:00:05.3]} 83. Re8 {[%clk 0:00:02]}
83... Bb6 {[%clk 0:00:05.2]} 84. Rg8 {[%clk 0:00:02.4]} 84... Be3 {[%clk
0:00:04.9]} 85. Kg3 {[%clk 0:00:02.4]} 85... e5 {[%clk 0:00:04.8]} 86. Re8
{[%clk 0:00:02.5]} 86... Kd6 {[%clk 0:00:04.7]} 87. Rd8+ {[%clk 0:00:02.7]}
87... Kc5 {[%clk 0:00:05]} 88. Re8 {[%clk 0:00:02.6]} 88... Kd4 {[%clk
0:00:05.5]} 89. Rb8 {[%clk 0:00:02.6]} 89... Bd2 {[%clk 0:00:04.7]} 90. Kh3
{[%clk 0:00:03.2]} 90... e4 {[%clk 0:00:05.1]} 91. Rb1 {[%clk 0:00:02.8]} 91...
e3 {[%clk 0:00:05.6]} 92. Kg3 {[%clk 0:00:03]} 92... Kd3 {[%clk 0:00:05.9]} 93.
Ra1 {[%clk 0:00:02.4]} 93... e2 {[%clk 0:00:06]} 94. Ra3+ {[%clk 0:00:03.3]}
94... Bc3 {[%clk 0:00:06.5]} 95. Kh3 {[%clk 0:00:01.7]} 95... Bg2+ {[%clk
0:00:04.8]} 0-1

[Event "Late-Titled-Tuesday-Blitz-December-26-2023"]
[Site "Chess.com"]
[Date "2023.12.26"]
[Round "8"]
[White "kikoveiga"]
[Black "Dr_crypt"]
[Result "1-0"]
[WhiteElo "2536"]
[BlackElo "2377"]
[TimeControl "180+1"]
[EndTime "15:22:24 PST"]
[Termination "kikoveiga won by resignation"]

1. c4 {[%clk 0:03:00.9]} 1... b6 {[%clk 0:02:58.7]} 2. Nc3 {[%clk 0:02:57.4]}
2... Bb7 {[%clk 0:02:58.5]} 3. e4 {[%clk 0:02:55.3]} 3... e5 {[%clk 0:02:56.9]}
4. g3 {[%clk 0:02:51.6]} 4... Nc6 {[%clk 0:02:56]} 5. Bg2 {[%clk 0:02:51]} 5...
Nge7 {[%clk 0:02:55.3]} 6. a3 {[%clk 0:02:49.7]} 6... Nd4 {[%clk 0:02:53.2]} 7.
Nge2 {[%clk 0:02:48.5]} 7... f5 {[%clk 0:02:52.4]} 8. d3 {[%clk 0:02:48.3]} 8...
Nxe2 {[%clk 0:02:37.4]} 9. Qxe2 {[%clk 0:02:47.5]} 9... d6 {[%clk 0:02:36.7]}
10. O-O {[%clk 0:02:46.4]} 10... g6 {[%clk 0:02:34.1]} 11. f4 {[%clk 0:02:34.2]}
11... Bg7 {[%clk 0:02:33.6]} 12. fxe5 {[%clk 0:02:34.4]} 12... Bxe5 {[%clk
0:02:32.6]} 13. exf5 {[%clk 0:02:31.6]} 13... Bxg2 {[%clk 0:02:31]} 14. Qxg2
{[%clk 0:02:28.3]} 14... Nxf5 {[%clk 0:02:30.5]} 15. Qc6+ {[%clk 0:02:18.5]}
15... Ke7 {[%clk 0:02:26.5]} 16. Bg5+ {[%clk 0:02:17.9]} 16... Bf6 {[%clk
0:02:14]} 17. Nd5+ {[%clk 0:02:17.5]} 1-0

[Event "Late-Titled-Tuesday-Blitz-December-26-2023"]
[Site "Chess.com"]
[Date "2023.12.26"]
[Round "8"]
[White "ElenGajger"]
[Black "CFalcons8"]
[Result "0-1"]
[WhiteElo "2425"]
[BlackElo "2270"]
[TimeControl "180+1"]
[EndTime "15:22:26 PST"]
[Termination "CFalcons8 won by resignation"]

1. e4 {[%clk 0:03:00.2]} 1... c6 {[%clk 0:02:54.4]} 2. d4 {[%clk 0:02:59.8]}
2... d5 {[%clk 0:02:53.9]} 3. Nd2 {[%clk 0:03:00.7]} 3... dxe4 {[%clk
0:02:49.6]} 4. Nxe4 {[%clk 0:03:01.6]} 4... Bf5 {[%clk 0:02:49]} 5. Ng3 {[%clk
0:03:01.9]} 5... Bg6 {[%clk 0:02:47.9]} 6. h4 {[%clk 0:03:02.8]} 6... h6 {[%clk
0:02:42.9]} 7. Nf3 {[%clk 0:03:03.2]} 7... Nd7 {[%clk 0:02:42]} 8. h5 {[%clk
0:03:03.5]} 8... Bh7 {[%clk 0:02:40.3]} 9. Bd3 {[%clk 0:03:04.4]} 9... Bxd3
{[%clk 0:02:40.5]} 10. Qxd3 {[%clk 0:03:05.3]} 10... e6 {[%clk 0:02:37.4]} 11.
Bd2 {[%clk 0:03:06.2]} 11... Ngf6 {[%clk 0:02:35.3]} 12. O-O-O {[%clk
0:03:07.1]} 12... Be7 {[%clk 0:02:33.6]} 13. Kb1 {[%clk 0:03:07.5]} 13... b5
{[%clk 0:02:28.4]} 14. Ne4 {[%clk 0:03:05.3]} 14... Qc7 {[%clk 0:02:24.8]} 15.
g4 {[%clk 0:02:43.7]} 15... Nxg4 {[%clk 0:02:21.8]} 16. Rhg1 {[%clk 0:02:42.2]}
16... f5 {[%clk 0:02:00.7]} 17. Rxg4 {[%clk 0:02:32.5]} 17... fxg4 {[%clk
0:01:58.9]} 18. Nh4 {[%clk 0:02:28.6]} 18... Bxh4 {[%clk 0:01:57.6]} 0-1

[Event "Late-Titled-Tuesday-Blitz-December-26-2023"]
[Site "Chess.com"]
[Date "2023.12.26"]
[Round "8"]
[White "zsoltkorpics"]
[Black "GoltsevDmitry2000"]
[Result "0-1"]
[WhiteElo "2503"]
[BlackElo "2677"]
[TimeControl "180+1"]
[EndTime "15:22:59 PST"]
[Termination "GoltsevDmitry2000 won by resignation"]

1. e4 {[%clk 0:03:00.9]} 1... e6 {[%clk 0:02:59.4]} 2. d4 {[%clk 0:03:00.8]}
2... d5 {[%clk 0:03:00.3]} 3. Bd3 {[%clk 0:03:01.1]} 3... c5 {[%clk 0:03:00.9]}
4. exd5 {[%clk 0:03:00.8]} 4... exd5 {[%clk 0:03:01.8]} 5. dxc5 {[%clk 0:03:01]}
5... Bxc5 {[%clk 0:03:01.7]} 6. Nf3 {[%clk 0:03:01.3]} 6... Nf6 {[%clk
0:03:02.3]} 7. O-O {[%clk 0:03:01.6]} 7... O-O {[%clk 0:03:03]} 8. Nc3 {[%clk
0:03:01.3]} 8... Nc6 {[%clk 0:03:03.5]} 9. Bg5 {[%clk 0:03:00.2]} 9... Bg4
{[%clk 0:03:03.6]} 10. h3 {[%clk 0:02:59.4]} 10... Bh5 {[%clk 0:03:03.8]} 11. g4
{[%clk 0:02:10.1]} 11... Bg6 {[%clk 0:03:02]} 12. Bxg6 {[%clk 0:02:10.2]} 12...
fxg6 {[%clk 0:03:02.9]} 13. Qd3 {[%clk 0:01:45.5]} 13... Nb4 {[%clk 0:03:01.9]}
14. Qb5 {[%clk 0:01:31.1]} 14... Qd6 {[%clk 0:03:00.4]} 15. Rad1 {[%clk
0:01:27.3]} 15... Qg3+ {[%clk 0:03:00.1]} 16. Kh1 {[%clk 0:01:14.3]} 16... Qxf3+
{[%clk 0:03:00.5]} 17. Kh2 {[%clk 0:01:14.8]} 17... Bd6+ {[%clk 0:03:00.4]} 18.
Kg1 {[%clk 0:01:14.5]} 18... Qxh3 {[%clk 0:02:59]} 19. f4 {[%clk 0:01:06.6]}
19... Nxg4 {[%clk 0:02:55.7]} 20. Qe2 {[%clk 0:01:04.3]} 20... Bc5+ {[%clk
0:02:55.7]} 0-1

[Event "Late-Titled-Tuesday-Blitz-December-26-2023"]
[Site "Chess.com"]
[Date "2023.12.26"]
[Round "8"]
[White "KorolDimitriy75"]
[Black "TheMagician"]
[Result "1-0"]
[WhiteElo "2335"]
[BlackElo "2168"]
[TimeControl "180+1"]
[EndTime "15:23:11 PST"]
[Termination "KorolDimitriy75 won by resignation"]

1. d4 {[%clk 0:03:00.9]} 1... Nf6 {[%clk 0:02:59.3]} 2. c4 {[%clk 0:03:01.1]}
2... e6 {[%clk 0:02:58.2]} 3. Nc3 {[%clk 0:03:01.7]} 3... d5 {[%clk 0:02:58]} 4.
Bg5 {[%clk 0:03:01.1]} 4... Be7 {[%clk 0:02:58.3]} 5. cxd5 {[%clk 0:03:01.1]}
5... Nxd5 {[%clk 0:02:57.7]} 6. Bxe7 {[%clk 0:03:00.3]} 6... Qxe7 {[%clk
0:02:54.7]} 7. e4 {[%clk 0:03:00.3]} 7... Nxc3 {[%clk 0:02:54.6]} 8. bxc3 {[%clk
0:03:01.2]} 8... c5 {[%clk 0:02:54.9]} 9. Nf3 {[%clk 0:03:01.3]} 9... cxd4
{[%clk 0:02:55.2]} 10. cxd4 {[%clk 0:03:02.2]} 10... Qb4+ {[%clk 0:02:55.2]} 11.
Qd2 {[%clk 0:03:02.2]} 11... Qxd2+ {[%clk 0:02:54.8]} 12. Kxd2 {[%clk
0:03:03.1]} 12... Bd7 {[%clk 0:02:50.7]} 13. Rb1 {[%clk 0:02:41.3]} 13... Bc6
{[%clk 0:02:36.1]} 14. Ke3 {[%clk 0:02:28.3]} 14... Nd7 {[%clk 0:02:35.3]} 15.
Bc4 {[%clk 0:02:22.8]} 15... b6 {[%clk 0:02:23.9]} 16. Rhc1 {[%clk 0:02:20.6]}
16... Bb7 {[%clk 0:02:12.8]} 17. Bb5 {[%clk 0:02:18.2]} 17... Kd8 {[%clk
0:01:56.6]} 18. Bxd7 {[%clk 0:02:02.4]} 18... Kxd7 {[%clk 0:01:52.5]} 19. Ne5+
{[%clk 0:02:03]} 19... Kd8 {[%clk 0:01:50.5]} 20. Nxf7+ {[%clk 0:02:03]} 20...
Kd7 {[%clk 0:01:50.6]} 21. Nxh8 {[%clk 0:02:01.3]} 21... Rxh8 {[%clk 0:01:51.5]}
1-0